fUST/lending_fUST_20260114
["ID","MTS","AMOUNT","RATE_DAILY","PERIOD"]
[401845975,1768385449562,-894.119727,0.000178,2]
[401845976,1768385449571,-894.119727,0.000178,2]
[401845977,1768385449580,-894.119727,0.000178,2]
[401845978,1768385449589,-894.119727,0.000178,2]
[401845979,1768385449599,-68338.9342698,0.000178,3]
[401845980,1768385449608,-400.30202268,0.00017842,2]
[401845981,1768385449618,-163.33303318,0.00017887,2]
[401845982,1768385449627,-971.7,0.00017898,2]
[401845983,1768385449636,-10250.980106,0.00017951,7]
[401845984,1768385449646,-1000.0,0.0001804,2]
[401845985,1768385449655,-1000.0,0.0001804,2]
[401845986,1768385449665,-2700.0,0.00018056,2]
[401845987,1768385449674,-22635.35326298,0.0001808,2]
[401845988,1768385449683,-4500.0,0.00018082,2]
[401845989,1768385449692,-4500.0,0.00018082,2]
[401845990,1768385449701,-4500.0,0.00018082,2]
[401845991,1768385449711,-740.38982778,0.00018172,2]
[401845992,1768385449720,-917.48910491,0.00018204,2]
[401845993,1768385449731,-5000.0,0.00018204,2]
[401845994,1768385449740,-5000.0,0.00018204,2]
[401845995,1768385449749,-5000.0,0.00018204,2]
[401845996,1768385449759,-5000.0,0.00018204,2]
[401845997,1768385449769,-2091.0,0.0001825,2]
[401845998,1768385449779,-2091.0,0.00018343,2]
[401845999,1768385449788,-2091.0,0.00018354,2]
[401846001,1768385449798,-3200.0,0.00018356,2]
[401846003,1768385449808,-1174.88548648,0.00018369,14]
[401846004,1768385449817,-2091.0,0.00018375,2]
[401846006,1768385449827,-319.0,0.00018405,2]
[401846008,1768385449836,-2091.0,0.0001841,2]
[401846010,1768385449845,-2091.0,0.00018469,2]
[401846012,1768385449854,-2091.0,0.00018503,2]
[401846014,1768385449863,-2091.0,0.00018535,2]
[401846016,1768385449874,-728.0,0.0001856,2]
[401846018,1768385449884,-382.0,0.000186,2]
[401846020,1768385449893,-3000.0,0.00018604,2]
[401846021,1768385449902,-2091.0,0.0001861,2]
[401846022,1768385449911,-600.0,0.0001863,2]
[401846023,1768385449921,-5000.0,0.0001863,2]
[401846024,1768385449929,-5000.0,0.0001863,2]
[401846026,1768385449938,-5000.0,0.0001863,2]
[401846028,1768385449947,-2091.0,0.00018713,2]
[401846029,1768385449956,-767.7842514,0.0001872,2]
[401846030,1768385449964,-2015.44184525,0.00018752,2]
[401846031,1768385449973,-5500.0,0.00018752,2]
[401846032,1768385449982,-5500.0,0.00018752,2]
[401846033,1768385449991,-5500.0,0.00018752,2]
[401846034,1768385450001,-2091.0,0.0001878,2]
[401846035,1768385450010,-458.0,0.00018817,2]
[401846037,1768385450019,-2091.0,0.00018826,2]
[401846039,1768385450028,-2091.0,0.00018847,2]
[401846040,1768385450037,-5000.0,0.00018863,2]
[401846042,1768385450048,-303.10001603,0.000189,2]
[401846044,1768385450060,-303.10001603,0.000189,2]
[401846046,1768385450069,-2091.0,0.00018926,2]
[401846048,1768385450079,-2000.0,0.00018959,7]
[401846050,1768385450089,-1504.9111099,0.00018966,2]
[401846051,1768385450098,-2091.0,0.00018973,2]
[401846052,1768385450111,-303.10001603,0.00019089,2]
[401846053,1768385450123,-303.10001603,0.00019089,2]
[401846054,1768385450133,-330.42,0.000191,7]
[401846055,1768385450142,-2091.0,0.00019104,2]
[401846056,1768385450163,-3300.0,0.00019152,2]
[401846057,1768385450173,-728.0,0.0001916,2]
[401846058,1768385450191,-507.1352,0.00019178,2]
[401846059,1768385450204,-507.1352,0.00019178,2]
[401846060,1768385450214,-507.1352,0.00019178,2]
[401846061,1768385450223,-200.0,0.00019178,2]
[401846062,1768385450232,-507.1352,0.00019178,2]
[401846063,1768385450242,-507.1352,0.00019178,2]
[401846064,1768385450252,-500.0,0.00019178,2]
[401846065,1768385450262,-151.0,0.00019178,2]
[401846066,1768385450271,-151.0,0.00019178,2]
[401846067,1768385450280,-666.883218,0.00019178,2]
[401846068,1768385450289,-666.883218,0.00019178,2]
[401846069,1768385450298,-666.883218,0.00019178,2]
[401846070,1768385450308,-666.883218,0.00019178,2]
[401846071,1768385450317,-666.883218,0.00019178,2]
[401846072,1768385450327,-666.883218,0.00019178,2]
[401846073,1768385450337,-666.883218,0.00019178,2]
[401846074,1768385450345,-666.883218,0.00019178,2]
[401846075,1768385450355,-666.883218,0.00019178,2]
[401846076,1768385450364,-666.883218,0.00019178,2]
[401846077,1768385450373,-666.883218,0.00019178,2]
[401846078,1768385450382,-666.883218,0.00019178,2]
[401846079,1768385450390,-5500.0,0.00019178,2]
[401846080,1768385450399,-5500.0,0.00019178,2]
[401846081,1768385450409,-5500.0,0.00019178,2]
[401846082,1768385450418,-2091.0,0.00019196,2]
[401846083,1768385450429,-316.46,0.000192,2]
[401846084,1768385450438,-316.42,0.000192,2]
[401846085,1768385450447,-5150.59,0.000192,2]
[401846086,1768385450456,-167.77,0.000192,2]
[401846087,1768385450465,-40340.44,0.000192,2]
[401846088,1768385450474,-151.0,0.000192,2]
[401846089,1768385450483,-2091.0,0.00019215,2]
[401846090,1768385450492,-2091.0,0.00019217,2]
[401846091,1768385450501,-542.76309715,0.00019268,2]
[401846092,1768385450510,-303.10001603,0.00019278,2]
[401846093,1768385450521,-303.10001603,0.00019278,2]
[401846094,1768385450531,-1540.44472477,0.000193,2]
[401846095,1768385450540,-6000.0,0.000193,2]
[401846096,1768385450550,-6000.0,0.000193,2]
[401846097,1768385450559,-2091.0,0.00019347,2]
[401846098,1768385450568,-971.7,0.00019357,2]
[401846099,1768385450577,-1174.88548648,0.00019363,15]
[401846100,1768385450586,-2081.0,0.00019415,2]
[401846101,1768385450595,-307.61092211,0.00019452,2]
[401846102,1768385450605,-2091.0,0.00019456,2]
[401846103,1768385450613,-303.10001603,0.00019467,2]
[401846104,1768385450623,-303.10001603,0.00019467,2]
[401846105,1768385450634,-162.0,0.0001948,2]
[401846106,1768385450653,-37777.407417,0.00019614,7]
[401846107,1768385450664,-303.10001603,0.00019656,2]
[401846108,1768385450673,-303.10001603,0.00019656,2]
[401846109,1768385450682,-756.20051056,0.000197,2]
[401846110,1768385450692,-179.180636,0.00019726,2]
[401846111,1768385450704,-800.0,0.00019726,2]
[401846112,1768385450714,-250.0,0.00019726,2]
[401846113,1768385450724,-6000.0,0.00019726,2]
[401846114,1768385450734,-6000.0,0.00019726,2]
[401846115,1768385450743,-6000.0,0.00019726,2]
[401846116,1768385450752,-250.0,0.00019726,2]
[401846117,1768385450761,-180.09545059,0.0001973,2]
[401846118,1768385450770,-2091.0,0.00019738,2]
[401846119,1768385450779,-1000.0,0.00019844,2]
[401846120,1768385450788,-1000.0,0.00019844,2]
[401846121,1768385450882,-579.0,0.00019844,2]
[401846122,1768385450892,-454.65002405,0.00019845,4]
[401846123,1768385450901,-454.65002405,0.00019845,4]
[401846124,1768385450911,-6500.0,0.00019848,2]
[401846125,1768385450920,-6500.0,0.00019848,2]
[401846126,1768385450929,-2091.0,0.00019942,2]
[401846127,1768385450938,-2091.0,0.00019985,2]
[401846128,1768385450947,-2091.0,0.00019991,2]
[401846129,1768385450956,-9661.0,0.0002,2]
[401846130,1768385450965,-151.55000802,0.0002,2]
[401846131,1768385450974,-499.4537,0.0002,2]
[401846132,1768385450984,-507.1352,0.0002,4]
[401846133,1768385450993,-300.0,0.0002,2]
[401846134,1768385451002,-200.0048,0.0002,4]
[401846135,1768385451011,-507.1352,0.0002,4]
[401846136,1768385451021,-507.1352,0.0002,4]
[401846137,1768385451031,-286.0948,0.0002,4]
[401846138,1768385451040,-454.65002405,0.00020034,4]
[401846139,1768385451053,-454.65002405,0.00020034,4]
[401846140,1768385451062,-454.65002405,0.00020223,4]
[401846141,1768385451071,-454.65002405,0.00020223,4]
[401846142,1768385451079,-200.91058964,0.00020274,2]
[401846143,1768385451090,-6500.0,0.00020274,2]
[401846144,1768385451100,-2000.0,0.00020274,7]
[401846145,1768385451110,-4946.58201638,0.00020274,2]
[401846146,1768385451122,-5402.72600724,0.00020274,2]
[401846147,1768385451131,-350.0,0.00020274,2]
[401846148,1768385451140,-151.0,0.000203,3]
[401846149,1768385451150,-1174.88548648,0.00020358,16]
[401846150,1768385451161,-7000.0,0.00020396,2]
[401846151,1768385451170,-2573.24025849,0.00020396,2]
[401846152,1768385451179,-507.1352,0.00020411,5]
[401846153,1768385451188,-507.1352,0.00020411,5]
[401846154,1768385451198,-507.1352,0.00020411,5]
[401846155,1768385451207,-454.65002405,0.00020412,4]
[401846156,1768385451217,-454.65002405,0.00020412,4]
[401846157,1768385451227,-728.0,0.0002044,2]
[401846158,1768385451236,-2028.396733,0.00020548,2]
[401846159,1768385451246,-316.46,0.000206,2]
[401846160,1768385451255,-5150.59,0.000206,2]
[401846161,1768385451265,-316.42,0.000206,2]
[401846162,1768385451275,-40340.44,0.000206,2]
[401846163,1768385451284,-666.883218,0.000206,2]
[401846164,1768385451293,-666.883218,0.000206,2]
[401846165,1768385451303,-666.883218,0.000206,2]
[401846166,1768385451312,-666.883218,0.000206,2]
[401846167,1768385451321,-152.95328,0.000206,2]
[401846168,1768385451330,-894.119727,0.000206,2]
[401846169,1768385451339,-894.119727,0.000206,2]
[401846170,1768385451348,-894.119727,0.000206,2]
[401846171,1768385451357,-894.119727,0.000206,2]
[401846172,1768385451366,-454.65002405,0.00020601,4]
[401846173,1768385451374,-454.65002405,0.00020601,4]
[401846174,1768385451383,-167.77,0.000207,2]
[401846175,1768385451392,-971.7,0.00020817,2]
[401846176,1768385451401,-1000.0,0.00020822,2]
[401846177,1768385451410,-7000.0,0.00020822,2]
[401846178,1768385451420,-450.0,0.00020822,2]
[401846179,1768385451429,-151.0,0.000209,4]
[401846180,1768385451438,-151.0,0.000209,4]
[401846181,1768385451448,-2683.87260271,0.00020944,2]
[401846182,1768385451457,-1635.14380211,0.00020966,2]
[401846183,1768385451466,-3000.0,0.00021,2]
[401846184,1768385451476,-700.0,0.00021,7]
[401846185,1768385451484,-3000.0,0.0002101,2]
[401846186,1768385451493,-3000.0,0.0002102,2]
[401846187,1768385451502,-3000.0,0.0002103,2]
[401846188,1768385451511,-3000.0,0.0002104,2]
[401846189,1768385451520,-3000.0,0.0002105,2]
[401846190,1768385451529,-3000.0,0.0002106,2]
[401846191,1768385451539,-3000.0,0.0002107,2]
[401846192,1768385451550,-3000.0,0.0002108,2]
[401846193,1768385451559,-3000.0,0.0002109,2]
[401846194,1768385451567,-3000.0,0.000211,2]
[401846195,1768385451576,-3000.0,0.0002111,2]
[401846196,1768385451585,-3000.0,0.0002112,2]
[401846197,1768385451594,-3000.0,0.0002113,2]
[401846198,1768385451603,-3000.0,0.0002114,2]
[401846199,1768385451612,-3000.0,0.0002115,2]
[401846200,1768385451621,-3000.0,0.0002116,2]
[401846201,1768385451630,-3000.0,0.0002117,2]
[401846202,1768385451639,-3000.0,0.0002118,2]
[401846203,1768385451649,-3000.0,0.0002119,2]
[401846204,1768385451658,-3000.0,0.000212,2]
[401846205,1768385451667,-3000.0,0.0002121,2]
[401846206,1768385451676,-3000.0,0.0002122,2]
[401846207,1768385451684,-3000.0,0.0002123,2]
[401846208,1768385451693,-3000.0,0.0002124,2]
[401846209,1768385451702,-3000.0,0.0002125,2]
[401846210,1768385451712,-3000.0,0.0002126,2]
[401846211,1768385451721,-3000.0,0.0002127,2]
[401846212,1768385451731,-3000.0,0.0002128,2]
[401846213,1768385451740,-3000.0,0.0002129,2]
[401846214,1768385451749,-3000.0,0.000213,2]
[401846215,1768385451757,-3000.0,0.0002131,2]
[401846216,1768385451766,-3000.0,0.0002132,2]
[401846217,1768385451775,-3000.0,0.0002133,2]
[401846218,1768385451783,-3000.0,0.0002134,2]
[401846219,1768385451793,-3000.0,0.0002135,2]
[401846220,1768385451802,-1174.88548648,0.00021352,18]
[401846221,1768385451811,-1367.0,0.00021357,2]
[401846222,1768385451820,-629.0,0.00021357,2]
[401846223,1768385451829,-2147.0,0.00021357,2]
[401846224,1768385451838,-430.0,0.00021357,2]
[401846225,1768385451847,-417.0,0.00021357,2]
[401846226,1768385451856,-772.303,0.00021357,2]
[401846227,1768385451865,-197.967,0.00021357,2]
[401846228,1768385451874,-3000.0,0.0002136,2]
[401846229,1768385451883,-7500.0,0.0002137,2]
[401846230,1768385451892,-550.0,0.0002137,2]
[401846231,1768385451901,-3000.0,0.0002137,2]
[401846232,1768385451910,-3000.0,0.0002138,2]
[401846233,1768385451919,-3000.0,0.0002139,2]
[401846234,1768385451927,-3000.0,0.000214,2]
[401846235,1768385451936,-3000.0,0.0002141,2]
[401846236,1768385451945,-3000.0,0.0002142,2]
[401846237,1768385451954,-4716.661967,0.0002143,2]
[401846238,1768385451962,-200.858,0.00021458,2]
[401846239,1768385451971,-221.878,0.00021458,2]
[401846240,1768385451980,-244.039,0.0002155,2]
[401846241,1768385451990,-232.431,0.0002155,2]
[401846242,1768385451999,-250.0,0.0002155,2]
[401846243,1768385452008,-261.564,0.0002155,2]
[401846244,1768385452017,-267.537,0.0002155,2]
[401846245,1768385452026,-2000.0,0.00021589,7]
[401846246,1768385452035,-22635.35326298,0.00021644,2]
[401846247,1768385452044,-289.89437104,0.00021649,2]
[401846248,1768385452053,-34169.46,0.000217,3]
[401846249,1768385452062,-1000.0,0.00021829,10]
[401846250,1768385452072,-1000.0,0.00021829,10]
[401846251,1768385452081,-1000.0,0.00021829,10]
[401846252,1768385452092,-169.388304,0.00021918,2]
[401846253,1768385452102,-151.0,0.00021918,2]
[401846254,1768385452111,-151.0,0.00021918,2]
[401846255,1768385452123,-151.0,0.00021918,2]
[401846256,1768385452132,-151.0,0.00021918,2]
[401846257,1768385452142,-151.0,0.00021918,2]
[401846258,1768385452151,-151.0,0.00021918,2]
[401846259,1768385452160,-151.0,0.00021918,2]
[401846260,1768385452169,-189.222608,0.00021918,2]
[401846261,1768385452178,-228.779396,0.00021918,2]
[401846262,1768385452187,-561.150045,0.00021918,2]
[401846263,1768385452197,-561.150045,0.00021918,2]
[401846264,1768385452207,-561.150045,0.00021918,2]
[401846265,1768385452215,-151.0,0.00021918,2]
[401846266,1768385452226,-561.150045,0.00021918,2]
[401846267,1768385452236,-561.150045,0.00021918,2]
[401846268,1768385452246,-561.150045,0.00021918,2]
[401846269,1768385452255,-561.150045,0.00021918,2]
[401846270,1768385452265,-561.150045,0.00021918,2]
[401846271,1768385452275,-181.655666,0.00021918,2]
[401846272,1768385452286,-151.0,0.00021918,2]
[401846273,1768385452295,-151.0,0.00021918,2]
[401846274,1768385452306,-151.0,0.00021918,2]
[401846275,1768385452316,-151.0,0.00021918,2]
[401846276,1768385452326,-180.50802,0.00021918,2]
[401846277,1768385452336,-151.0,0.00021918,2]
[401846278,1768385452346,-151.0,0.00021918,2]
[401846279,1768385452356,-151.0,0.00021918,2]
[401846280,1768385452365,-151.0,0.00021918,2]
[401846281,1768385452375,-369.592925,0.00021918,2]
[401846282,1768385452383,-369.592925,0.00021918,2]
[401846283,1768385452392,-369.592925,0.00021918,2]
[401846284,1768385452401,-369.592925,0.00021918,2]
[401846285,1768385452410,-369.592925,0.00021918,2]
[401846286,1768385452419,-369.592925,0.00021918,2]
[401846287,1768385452430,-151.0,0.00021918,2]
[401846288,1768385452438,-151.0,0.00021918,2]
[401846289,1768385452447,-369.592925,0.00021918,2]
[401846290,1768385452456,-151.0,0.00021918,2]
[401846291,1768385452465,-369.592925,0.00021918,2]
[401846292,1768385452474,-151.0,0.00021918,2]
[401846293,1768385452483,-151.0,0.00021918,2]
[401846294,1768385452492,-209.631005,0.00021918,2]
[401846295,1768385452501,-490.347103,0.00021918,2]
[401846296,1768385452510,-490.347103,0.00021918,2]
[401846297,1768385452520,-490.347103,0.00021918,2]
[401846298,1768385452529,-490.347103,0.00021918,2]
[401846299,1768385452538,-490.347103,0.00021918,2]
[401846300,1768385452547,-490.347103,0.00021918,2]
[401846301,1768385452558,-490.347103,0.00021918,2]
[401846302,1768385452567,-490.347103,0.00021918,2]
[401846303,1768385452577,-490.347103,0.00021918,2]
[401846304,1768385452585,-490.347103,0.00021918,2]
[401846305,1768385452595,-490.347103,0.00021918,2]
[401846306,1768385452605,-490.347103,0.00021918,2]
[401846307,1768385452614,-490.971226,0.00021918,2]
[401846308,1768385452623,-490.971226,0.00021918,2]
[401846309,1768385452717,-490.971226,0.00021918,2]
[401846310,1768385452727,-490.971226,0.00021918,2]
[401846311,1768385452736,-490.971226,0.00021918,2]
[401846312,1768385452745,-490.971226,0.00021918,2]
[401846313,1768385452754,-490.971226,0.00021918,2]
[401846314,1768385452763,-490.971226,0.00021918,2]
[401846315,1768385452772,-490.971226,0.00021918,2]
[401846316,1768385452780,-490.971226,0.00021918,2]
[401846317,1768385452789,-490.971226,0.00021918,2]
[401846318,1768385452798,-490.971226,0.00021918,2]
[401846319,1768385452807,-505.094065,0.00021918,2]
[401846320,1768385452816,-505.094065,0.00021918,2]
[401846321,1768385452824,-505.094065,0.00021918,2]
[401846322,1768385452834,-505.094065,0.00021918,2]
[401846323,1768385452843,-505.094065,0.00021918,2]
[401846324,1768385452852,-505.094065,0.00021918,2]
[401846325,1768385452861,-505.094065,0.00021918,2]
[401846326,1768385452871,-505.094065,0.00021918,2]
[401846327,1768385452880,-505.094065,0.00021918,2]
[401846328,1768385452890,-505.094065,0.00021918,2]
[401846329,1768385452900,-505.094065,0.00021918,2]
[401846330,1768385452912,-505.094065,0.00021918,2]
[401846331,1768385452922,-487.891031,0.00021918,2]
[401846332,1768385452932,-487.891031,0.00021918,2]
[401846333,1768385452941,-487.891031,0.00021918,2]
[401846334,1768385452950,-487.891031,0.00021918,2]
[401846335,1768385452959,-487.891031,0.00021918,2]
[401846336,1768385452968,-487.891031,0.00021918,2]
[401846337,1768385452977,-487.891031,0.00021918,2]
[401846338,1768385452987,-487.891031,0.00021918,2]
[401846339,1768385452996,-487.891031,0.00021918,2]
[401846340,1768385453005,-487.891031,0.00021918,2]
[401846341,1768385453014,-487.891031,0.00021918,2]
[401846342,1768385453023,-487.891031,0.00021918,2]
[401846343,1768385453033,-151.0,0.00021918,2]
[401846344,1768385453043,-178.026662,0.00021918,2]
[401846345,1768385453056,-151.0,0.00021918,2]
[401846346,1768385453066,-633.419635,0.00021918,2]
[401846347,1768385453075,-151.0,0.00021918,2]
[401846348,1768385453084,-633.419635,0.00021918,2]
[401846349,1768385453095,-177.807708,0.00021918,2]
[401846350,1768385453105,-633.419635,0.00021918,2]
[401846351,1768385453114,-633.419635,0.00021918,2]
[401846352,1768385453125,-633.419635,0.00021918,2]
[401846353,1768385453138,-633.419635,0.00021918,2]
[401846354,1768385453148,-633.419635,0.00021918,2]
[401846355,1768385453158,-633.419635,0.00021918,2]
[401846356,1768385453167,-633.419635,0.00021918,2]
[401846357,1768385453177,-633.419635,0.00021918,2]
[401846358,1768385453186,-633.419635,0.00021918,2]
[401846359,1768385453196,-633.419635,0.00021918,2]
[401846360,1768385453205,-633.419635,0.00021918,2]
[401846361,1768385453215,-633.419635,0.00021918,2]
[401846362,1768385453224,-633.419635,0.00021918,2]
[401846363,1768385453234,-633.419635,0.00021918,2]
[401846364,1768385453244,-424.867584,0.00021918,2]
[401846365,1768385453253,-424.867584,0.00021918,2]
[401846366,1768385453263,-424.867584,0.00021918,2]
[401846367,1768385453273,-424.867584,0.00021918,2]
[401846368,1768385453283,-424.867584,0.00021918,2]
[401846369,1768385453292,-424.867584,0.00021918,2]
[401846370,1768385453302,-424.867584,0.00021918,2]
[401846371,1768385453312,-424.867584,0.00021918,2]
[401846372,1768385453322,-424.867584,0.00021918,2]
[401846373,1768385453332,-424.867584,0.00021918,2]
[401846374,1768385453342,-424.867584,0.00021918,2]
[401846375,1768385453352,-424.867584,0.00021918,2]
[401846376,1768385453361,-424.867584,0.00021918,2]
[401846377,1768385453371,-424.867584,0.00021918,2]
[401846378,1768385453381,-424.867584,0.00021918,2]
[401846379,1768385453391,-424.867584,0.00021918,2]
[401846380,1768385453400,-151.0,0.00021918,2]
[401846381,1768385453409,-151.0,0.00021918,2]
[401846382,1768385453421,-151.0,0.00021918,2]
[401846383,1768385453432,-151.0,0.00021918,2]
[401846384,1768385453441,-151.0,0.00021918,2]
[401846385,1768385453450,-158.985841,0.00021918,2]
[401846386,1768385453459,-269.531523,0.00021918,2]
[401846387,1768385453468,-879.438014,0.00021918,2]
[401846388,1768385453478,-879.438014,0.00021918,2]
[401846389,1768385453486,-879.438014,0.00021918,2]
[401846390,1768385453495,-879.438014,0.00021918,2]
[401846391,1768385453505,-879.438014,0.00021918,2]
[401846392,1768385453514,-879.438014,0.00021918,2]
[401846393,1768385453523,-879.438014,0.00021918,2]
[401846394,1768385453532,-879.438014,0.00021918,2]
[401846395,1768385453541,-879.438014,0.00021918,2]
[401846396,1768385453551,-879.438014,0.00021918,2]
[401846397,1768385453559,-879.438014,0.00021918,2]
[401846398,1768385453568,-879.438014,0.00021918,2]
[401846399,1768385453577,-879.438014,0.00021918,2]
[401846400,1768385453586,-879.438014,0.00021918,2]
[401846401,1768385453606,-879.438014,0.00021918,2]
[401846402,1768385453616,-879.438014,0.00021918,2]
[401846403,1768385453625,-382.165336,0.00021918,2]
[401846404,1768385453635,-216.477356,0.00021918,2]
[401846405,1768385453644,-382.165336,0.00021918,2]
[401846406,1768385453653,-216.477356,0.00021918,2]
[401846407,1768385453663,-382.165336,0.00021918,2]
[401846408,1768385453673,-216.477356,0.00021918,2]
[401846409,1768385453684,-382.165336,0.00021918,2]
[401846410,1768385453694,-216.477356,0.00021918,2]
[401846411,1768385453703,-382.165336,0.00021918,2]
[401846412,1768385453713,-216.477356,0.00021918,2]
[401846413,1768385453726,-382.165336,0.00021918,2]
[401846414,1768385453737,-216.477356,0.00021918,2]
[401846415,1768385453747,-382.165336,0.00021918,2]
[401846416,1768385453757,-216.477356,0.00021918,2]
[401846417,1768385453767,-382.165336,0.00021918,2]
[401846418,1768385453776,-216.477356,0.00021918,2]
[401846419,1768385453786,-382.165336,0.00021918,2]
[401846420,1768385453796,-216.477356,0.00021918,2]
[401846421,1768385453806,-382.165336,0.00021918,2]
[401846422,1768385453817,-216.477356,0.00021918,2]
[401846423,1768385453827,-382.165336,0.00021918,2]
[401846424,1768385453836,-216.477356,0.00021918,2]
[401846425,1768385453846,-382.165336,0.00021918,2]
[401846426,1768385453857,-216.477356,0.00021918,2]
[401846427,1768385453867,-382.165336,0.00021918,2]
[401846428,1768385453877,-216.477356,0.00021918,2]
[401846429,1768385453887,-382.165336,0.00021918,2]
[401846430,1768385453898,-216.477356,0.00021918,2]
[401846431,1768385453907,-382.165336,0.00021918,2]
[401846432,1768385453932,-216.477356,0.00021918,2]
[401846433,1768385453942,-382.165336,0.00021918,2]
[401846434,1768385453953,-216.477356,0.00021918,2]
[401846435,1768385453963,-151.0,0.00021918,2]
[401846436,1768385453973,-163.521598,0.00021918,2]
[401846437,1768385453982,-431.74536,0.00021918,2]
[401846438,1768385453991,-431.74536,0.00021918,2]
[401846439,1768385454000,-431.74536,0.00021918,2]
[401846440,1768385454010,-431.74536,0.00021918,2]
[401846441,1768385454019,-431.74536,0.00021918,2]
[401846442,1768385454028,-431.74536,0.00021918,2]
[401846443,1768385454038,-431.74536,0.00021918,2]
[401846444,1768385454049,-431.74536,0.00021918,2]
[401846445,1768385454059,-431.74536,0.00021918,2]
[401846446,1768385454068,-431.74536,0.00021918,2]
[401846447,1768385454078,-431.74536,0.00021918,2]
[401846448,1768385454088,-431.74536,0.00021918,2]
[401846449,1768385454098,-431.74536,0.00021918,2]
[401846450,1768385454113,-431.74536,0.00021918,2]
[401846451,1768385454124,-431.74536,0.00021918,2]
[401846452,1768385454134,-431.74536,0.00021918,2]
[401846453,1768385454144,-151.0,0.00021918,2]
[401846454,1768385454154,-151.0,0.00021918,2]
[401846455,1768385454164,-291.05514,0.00021918,2]
[401846456,1768385454174,-3688.352014,0.00021918,2]
[401846457,1768385454184,-3688.352014,0.00021918,2]
[401846458,1768385454193,-3688.352014,0.00021918,2]
[401846459,1768385454203,-3688.352014,0.00021918,2]
[401846460,1768385454213,-3688.352014,0.00021918,2]
[401846461,1768385454224,-3688.352014,0.00021918,2]
[401846462,1768385454234,-3688.352014,0.00021918,2]
[401846463,1768385454245,-3688.352014,0.00021918,2]
[401846464,1768385454255,-3688.352014,0.00021918,2]
[401846465,1768385454266,-3688.352014,0.00021918,2]
[401846466,1768385454275,-3688.352014,0.00021918,2]
[401846467,1768385454285,-3688.352014,0.00021918,2]
[401846468,1768385454294,-3688.352014,0.00021918,2]
[401846469,1768385454304,-3688.352014,0.00021918,2]
[401846470,1768385454313,-3688.352014,0.00021918,2]
[401846471,1768385454323,-3688.352014,0.00021918,2]
[401846472,1768385454332,-151.0,0.00021918,2]
[401846473,1768385454341,-183.080684,0.00021918,2]
[401846474,1768385454351,-153.839404,0.00021918,2]
[401846475,1768385454361,-240.755518,0.00021918,2]
[401846476,1768385454370,-237.361203,0.00021918,2]
[401846477,1768385454379,-237.361203,0.00021918,2]
[401846478,1768385454389,-237.361203,0.00021918,2]
[401846479,1768385454398,-237.361203,0.00021918,2]
[401846480,1768385454407,-237.361203,0.00021918,2]
[401846481,1768385454416,-237.361203,0.00021918,2]
[401846482,1768385454425,-237.361203,0.00021918,2]
[401846483,1768385454552,-237.361203,0.00021918,2]
[401846484,1768385454562,-151.0,0.00021918,2]
[401846485,1768385454572,-237.361203,0.00021918,2]
[401846486,1768385454581,-151.0,0.00021918,2]
[401846487,1768385454594,-237.361203,0.00021918,2]
[401846488,1768385454604,-151.0,0.00021918,2]
[401846489,1768385454614,-237.361203,0.00021918,2]
[401846490,1768385454624,-151.0,0.00021918,2]
[401846491,1768385454633,-237.361203,0.00021918,2]
[401846492,1768385454643,-151.0,0.00021918,2]
[401846493,1768385454652,-237.361203,0.00021918,2]